[Event "GER-ch Youth U12 2019"]
[Site "Willingen"]
[Date "2019.06.09"]
[Round "2.7"]
[White "Stork, Christopher"]
[Black "Bock, Marlon"]
[Result "1-0"]
[ECO "B07"]
[WhiteElo "1817"]
[BlackElo "1596"]
[Annotator "NA"]
[PlyCount "105"]
[EventDate "2019.06.07"]
[EventType "swiss"]
[EventRounds "9"]
[EventCountry "GER"]
[SourceTitle "playchess.com"]
[Source "ChessBase"]
[SourceQuality "1"]
[TimeControl "40/4500+30:900+30"]

1. e4 {[%emt 0:00:00]} d6 {[%emt 0:00:00]} 2. d4 {[%emt 0:00:00]} Nf6 {[%emt 0:00:00]} 3. Nc3 {[%emt 0:00:00]} e5 {[%emt 0:00:00]} 4. dxe5 {[%emt 0:00:00]} dxe5 {[%emt 0:00:00]} 5. Qxd8+ {[%emt 0:00:00]} Kxd8 {[%emt 0:00:00]} 6. Bg5 {[%emt 0:00:00]} Be6 {[%emt 0:00:00]} 7. O-O-O+ {[%emt 0:00:00]} Kc8 {[%emt 0:00:00]} 8. Nf3 {[%emt 0:00:00]} Bd6 {[%emt 0:00:00]} 9. Be2 {[%emt 0:00:00]} Nbd7 {[%emt 0:00:00]} 10. Nd2 {[%emt 0:00:00]} h6 {[%emt 0:08:58]} 11. Be3 {[%emt 0:00:00]} Nc5 {[%emt 0:04:28]} 12. f3 {[%emt 0:00:00]} Ncd7 {[%emt 0:04:17]} 13. Nc4 {[%emt 0:00:00]} Be7 {[%emt 0:00:35]} 14. Bf2 {[%emt 0:00:00]} Nh5 {[%emt 0:03:48]} 15. Ne3 {[%emt 0:00:44]} Nf4 {[%emt 0:03:51]} 16. Bc4 {[%emt 0:02:01]} Bg5 {[%emt 0:02:33]} 17. Bxe6 {[%emt 0:01:02]} fxe6 {[%emt 0:00:18]} 18. Kb1 {[%emt 0:00:07]} Be7 {[%emt 0:02:28]} 19. Rd2 {[%emt 0:01:39]} Rd8 {[%emt 0:05:01]} 20. h4 {[%emt 0:01:07]} Ng6 {[%emt 0:04:41]} 21. h5 {[%emt 0:00:31]} Nh8 {[%emt 0:00:26]} 22. Nc4 {[%emt 0:00:53]} Bg5 {[%emt 0:01:13]} 23. Rd3 {[%emt 0:01:21]} Nf7 {[%emt 0:01:14]} 24. Rhd1 {[%emt 0:00:56]} a6 {[%emt 0:03:17]} 25. Na5 {[%emt 0:01:57]} Nd6 {[%emt 0:01:30]} 26. Nb3 {[%emt 0:01:13]} b6 {[%emt 0:04:02]} 27. Na4 {[%emt 0:00:56]} Rb8 {[%emt 0:01:43]} 28. c4 {[%emt 0:05:31]} Nxc4 {[%emt 0:03:29]} 29. Rc3 {[%emt 0:01:07]} b5 {[%emt 0:00:57]} 30. Nac5 {[%emt 0:01:00]} Nxc5 {[%emt 0:00:36]} 31. Rxd8+ {[%emt 0:00:11]} Kxd8 {[%emt 0:00:19]} 32. Nxc5 {[%emt 0:00:28]} Ke7 {[%emt 0:07:17]} 33. Rd3 {[%emt 0:00:57]} Nd6 {[%emt 0:01:30]} 34. Nxa6 {[%emt 0:00:28]} Rb7 {[%emt 0:00:30]} 35. Rc3 {[%emt 0:00:44]} Ne8 {[%emt 0:02:02]} 36. Nc5 {[%emt 0:00:47]} Rb8 {[%emt 0:01:13]} 37. Kc2 {[%emt 0:01:33]} Rd8 {[%emt 0:00:50]} 38. Rd3 {[%emt 0:00:46]} Rxd3 {[%emt 0:05:00]} 39. Nxd3 {[%emt 0:00:17]} Bf6 {[%emt 0:01:36]} 40. Kc3 {[%emt 0:01:04]} Nd6 {[%emt 0:00:53]} 41. b3 {[%emt 0:15:36]} c6 {[%emt 0:15:39]} 42. Kb4 {[%emt 0:00:54]} Nb7 {[%emt 0:01:04]} 43. a4 {[%emt 0:00:54]} Kd8 {[%emt 0:00:48]} 44. axb5 {[%emt 0:00:21]} Be7+ {[%emt 0:00:23]} 45. Ka4 {[%emt 0:00:51]} cxb5+ {[%emt 0:01:13]} 46. Kxb5 {[%emt 0:00:22]} Bd6 {[%emt 0:00:27]} 47. Kc6 {[%emt 0:00:32]} Kc8 {[%emt 0:00:22]} 48. b4 {[%emt 0:01:26]} Bc7 {[%emt 0:00:23]} 49. Bb6 {[%emt 0:00:42]} Nd8+ {[%emt 0:00:35]} 50. Kb5 {[%emt 0:00:26]} Bb8 {[%emt 0:01:48]} 51. Bxd8 {[%emt 0:01:12]} Kxd8 {[%emt 0:00:05]} 52. Kc6 {[%emt 0:00:17]} Kc8 {[%emt 0:00:13]} 53. Nc5 {normal} 1-0

[Event "GER-ch Youth U12 2019"]
[Site "Willingen"]
[Date "2019.06.09"]
[Round "2.8"]
[White "Heinrich, John"]
[Black "Breitkopf-Lazar, Patrick-Robert"]
[Result "1-0"]
[ECO "C72"]
[WhiteElo "1695"]
[BlackElo "1659"]
[Annotator "NA"]
[PlyCount "75"]
[EventDate "2019.06.07"]
[EventType "swiss"]
[EventRounds "9"]
[EventCountry "GER"]
[SourceTitle "playchess.com"]
[Source "ChessBase"]
[SourceQuality "1"]
[TimeControl "40/4500+30:900+30"]

1. e4 {[%emt 0:00:00]} e5 {[%emt 0:00:00]} 2. Nf3 {[%emt 0:00:00]} Nc6 {[%emt 0:00:00]} 3. Bb5 {[%emt 0:00:00]} a6 {[%emt 0:00:00]} 4. Ba4 {[%emt 0:00:00]} d6 {[%emt 0:00:00]} 5. O-O {[%emt 0:00:00]} Bd7 {[%emt 0:00:00]} 6. Re1 {[%emt 0:00:00]} Nf6 {[%emt 0:00:00]} 7. c3 {[%emt 0:00:00]} Be7 {[%emt 0:00:00]} 8. d4 {[%emt 0:00:00]} O-O {[%emt 0:00:00]} 9. Nbd2 {[%emt 0:00:00]} b5 {[%emt 0:00:00]} 10. Bc2 {[%emt 0:00:00]} exd4 {[%emt 0:00:00]} 11. cxd4 {[%emt 0:00:00]} Nb4 {[%emt 0:00:00]} 12. Bb1 {[%emt 0:00:00]} c5 {[%emt 0:00:00]} 13. a3 {[%emt 0:02:44]} Nc6 {[%emt 0:00:00]} 14. d5 {[%emt 0:01:32]} Na5 {[%emt 0:01:33]} 15. b4 {[%emt 0:13:12]} Nb7 {[%emt 0:03:01]} 16. bxc5 {[%emt 0:04:20]} Nxc5 {[%emt 0:01:29]} 17. Nb3 {[%emt 0:05:11]} Nxb3 {[%emt 0:01:19]} 18. Qxb3 {[%emt 0:00:28]} Ng4 {[%emt 0:06:35]} 19. Bb2 {[%emt 0:03:14]} Bf6 {[%emt 0:00:32]} 20. Bd3 {[%emt 0:11:04]} Re8 {[%emt 0:03:17]} 21. h3 {[%emt 0:07:22]} Ne5 {[%emt 0:01:46]} 22. Nxe5 {[%emt 0:00:39]} Bxe5 {[%emt 0:00:06]} 23. Bxe5 {[%emt 0:01:23]} Rxe5 {[%emt 0:00:48]} 24. f4 {[%emt 0:01:18]} Re8 {[%emt 0:00:07]} 25. e5 {[%emt 0:03:08]} dxe5 {[%emt 0:04:30]} 26. fxe5 {[%emt 0:00:17]} Qg5 {[%emt 0:00:17]} 27. e6 {[%emt 0:06:37]} fxe6 {[%emt 0:01:36]} 28. dxe6 {[%emt 0:00:32]} Bc6 {[%emt 0:00:07]} 29. Bxh7+ {[%emt 0:02:45]} Kh8 {[%emt 0:03:40]} 30. Be4 {[%emt 0:00:17]} Rab8 {[%emt 0:09:12]} 31. Bxc6 {[%emt 0:07:36]} Qc5+ {[%emt 0:00:09]} 32. Kh1 {[%emt 0:00:15]} Qxc6 {[%emt 0:00:06]} 33. Re5 {[%emt 0:01:36]} Qc4 {[%emt 0:03:14]} 34. Qe3 {[%emt 0:05:13]} Rbc8 {[%emt 0:04:28]} 35. Re1 {[%emt 0:02:04]} Re7 {[%emt 0:07:26]} 36. Qb6 {[%emt 0:02:37]} Qc6 {[%emt 0:00:50]} 37. Qd4 {[%emt 0:00:47]} Rce8 {[%emt 0:03:08]} 38. Qg4 {[%emt 0:01:41] normal} 1-0

[Event "GER-ch Youth U12 2019"]
[Site "Willingen"]
[Date "2019.06.09"]
[Round "2.9"]
[White "Fuchs, Florian"]
[Black "Fuhrmann, Bahne"]
[Result "1-0"]
[ECO "C46"]
[WhiteElo "2235"]
[BlackElo "1659"]
[Annotator "NA"]
[PlyCount "34"]
[EventDate "2019.06.07"]
[EventType "swiss"]
[EventRounds "9"]
[EventCountry "GER"]
[SourceTitle "playchess.com"]
[Source "ChessBase"]
[SourceQuality "1"]
[TimeControl "40/4500+30:900+30"]

1. e4 {[%emt 0:00:00]} e5 {[%emt 0:00:00]} 2. Nf3 {[%emt 0:00:00]} Nc6 {[%emt 0:00:00]} 3. Nc3 {[%emt 0:00:00]} Bc5 {[%emt 0:00:00]} 4. Nxe5 {[%emt 0:00:00]} Nxe5 {[%emt 0:00:00]} 5. d4 {[%emt 0:00:00]} Bxd4 {[%emt 0:00:00]} 6. Qxd4 {[%emt 0:00:00]} Qf6 {[%emt 0:00:00]} 7. Be3 {[%emt 0:00:00]} c6 {[%emt 0:00:00]} 8. Be2 {[%emt 0:00:00]} Ng6 {[%emt 0:00:13]} 9. Qd2 {[%emt 0:05:34]} Qe7 {[%emt 0:07:07]} 10. f4 {[%emt 0:06:34]} Qb4 {[%emt 0:04:53]} 11. O-O-O {[%emt 0:02:27]} Nf6 {[%emt 0:00:25]} 12. a3 {[%emt 0:01:19]} Qe7 {[%emt 0:00:35]} 13. e5 {[%emt 0:00:31]} Nxe5 {[%emt 0:01:17]} 14. fxe5 {[%emt 0:00:24]} Qxe5 {[%emt 0:00:10]} 15. Bf4 {[%emt 0:00:29]} Qe6 {[%emt 0:00:56]} 16. Bd6 {[%emt 0:00:46]} Nd5 {[%emt 0:01:10]} 17. Bc5 {[%emt 0:02:59]} b6 {[%emt 0:02:18] normal} 1-0

[Event "GER-ch Youth U12 2019"]
[Site "Willingen"]
[Date "2019.06.09"]
[Round "2.10"]
[White "Gressler, Christian"]
[Black "Guo, Philipp Ziming"]
[Result "0-1"]
[ECO "A08"]
[WhiteElo "1416"]
[BlackElo "1674"]
[Annotator "NA"]
[PlyCount "76"]
[EventDate "2019.06.07"]
[EventType "swiss"]
[EventRounds "9"]
[EventCountry "GER"]
[SourceTitle "playchess.com"]
[Source "ChessBase"]
[SourceQuality "1"]
[TimeControl "40/4500+30:900+30"]

1. e4 {[%emt 0:00:00]} c5 {[%emt 0:00:00]} 2. Nf3 {[%emt 0:00:00]} Nc6 {[%emt 0:00:00]} 3. d3 {[%emt 0:00:00]} e6 {[%emt 0:00:00]} 4. g3 {[%emt 0:00:00]} d5 {[%emt 0:00:00]} 5. Nbd2 {[%emt 0:00:00]} Nf6 {[%emt 0:00:00]} 6. Bg2 {[%emt 0:00:00]} Be7 {[%emt 0:00:00]} 7. O-O {[%emt 0:00:00]} O-O {[%emt 0:00:00]} 8. Re1 {[%emt 0:00:00]} h6 {[%emt 0:01:23]} 9. Nf1 {[%emt 0:00:00]} dxe4 {[%emt 0:01:23]} 10. dxe4 {[%emt 0:00:35]} Qxd1 {[%emt 0:00:57]} 11. Rxd1 {[%emt 0:00:11]} Nxe4 {[%emt 0:01:07]} 12. Nh4 {[%emt 0:04:32]} Nf6 {[%emt 0:01:44]} 13. Re1 {[%emt 0:02:00]} Nd4 {[%emt 0:11:28]} 14. Ne3 {[%emt 0:03:04]} g5 {[%emt 0:04:56]} 15. Nf3 {[%emt 0:01:11]} Nxf3+ {[%emt 0:01:17]} 16. Bxf3 {[%emt 0:00:16]} Rd8 {[%emt 0:01:41]} 17. Nf5 {[%emt 0:01:36]} Bf8 {[%emt 0:01:26]} 18. Ne3 {[%emt 0:02:55]} Rb8 {[%emt 0:03:51]} 19. h4 {[%emt 0:01:50]} gxh4 {[%emt 0:04:28]} 20. gxh4 {[%emt 0:00:21]} b6 {[%emt 0:01:23]} 21. Ng4 {[%emt 0:04:36]} Nxg4 {[%emt 0:01:39]} 22. Bxg4 {[%emt 0:00:13]} Rd4 {[%emt 0:02:32]} 23. f3 {[%emt 0:01:19]} f5 {[%emt 0:01:51]} 24. c3 {[%emt 0:06:47]} Rd3 {[%emt 0:06:33]} 25. Bh5 {[%emt 0:00:51]} Rb7 {[%emt 0:05:18]} 26. Kf1 {[%emt 0:03:23]} Be7 {[%emt 0:04:48]} 27. Re2 {[%emt 0:02:07]} Rd1+ {[%emt 0:01:26]} 28. Re1 {[%emt 0:01:41]} Rxe1+ {[%emt 0:00:12]} 29. Kxe1 {[%emt 0:00:06]} Bxh4+ {[%emt 0:00:34]} 30. Ke2 {[%emt 0:00:06]} Bg5 {[%emt 0:02:15]} 31. Bxg5 {[%emt 0:01:44]} hxg5 {[%emt 0:00:03]} 32. Rd1 {[%emt 0:00:28]} Rd7 {[%emt 0:00:15]} 33. Rh1 {[%emt 0:01:00]} Ba6+ {[%emt 0:02:46]} 34. Ke1 {[%emt 0:01:10]} Kg7 {[%emt 0:02:36]} 35. Rg1 {[%emt 0:01:34]} Kf6 {[%emt 0:00:51]} 36. Be8 {[%emt 0:04:35]} Rd3 {[%emt 0:02:24]} 37. Bc6 {[%emt 0:00:55]} Re3+ {[%emt 0:01:19]} 38. Kd1 {[%emt 0:01:37]} Re2 {[%emt 0:02:27] normal} 0-1

[Event "GER-ch Youth U12 2019"]
[Site "Willingen"]
[Date "2019.06.09"]
[Round "2.11"]
[White "Malchereck, Zion"]
[Black "Ohler, Julius"]
[Result "0-1"]
[ECO "C02"]
[WhiteElo "1438"]
[BlackElo "1837"]
[Annotator "NA"]
[PlyCount "39"]
[EventDate "2019.06.07"]
[EventType "swiss"]
[EventRounds "9"]
[EventCountry "GER"]
[SourceTitle "playchess.com"]
[Source "ChessBase"]
[SourceQuality "1"]
[TimeControl "40/4500+30:900+30"]

1. e4 {[%emt 0:00:00]} e6 {[%emt 0:00:00]} 2. d4 {[%emt 0:00:00]} d5 {[%emt 0:00:00]} 3. e5 {[%emt 0:00:00]} c5 {[%emt 0:00:00]} 4. c3 {[%emt 0:00:00]} Nc6 {[%emt 0:00:00]} 5. Nf3 {[%emt 0:00:00]} Qb6 {[%emt 0:00:00]} 6. a4 {[%emt 0:00:00]} cxd4 {[%emt 0:00:00]} 7. cxd4 {[%emt 0:00:00]} Nge7 {[%emt 0:00:00]} 8. Bb5 {[%emt 0:00:00]} a6 {[%emt 0:00:00]} 9. Bxc6+ {[%emt 0:00:00]} Nxc6 {[%emt 0:00:00]} 10. O-O {[%emt 0:00:00]} Be7 {[%emt 0:00:00]} 11. Nc3 {[%emt 0:00:00]} O-O {[%emt 0:00:00]} 12. Be3 {[%emt 0:00:00]} Qxb2 {[%emt 0:00:45]} 13. Bd2 {[%emt 0:00:00]} Qb6 {[%emt 0:02:46]} 14. Rb1 {[%emt 0:00:04]} Qc7 {[%emt 0:00:29]} 15. Qc2 {[%emt 0:02:45]} f6 {[%emt 0:04:20]} 16. Ne2 {[%emt 0:05:35]} f5 {[%emt 0:07:37]} 17. Ng3 {[%emt 0:05:25]} Bd7 {[%emt 0:03:55]} 18. Rb2 {[%emt 0:03:07]} Rfc8 {[%emt 0:01:52]} 19. Rfb1 {[%emt 0:00:18]} Rab8 {[%emt 0:02:45]} 20. a5 {[%emt 0:03:19] normal} 0-1

[Event "GER-ch Youth U12 2019"]
[Site "Willingen"]
[Date "2019.06.09"]
[Round "2.12"]
[White "Rempe, Jonas"]
[Black "Tomasjan, Samuel"]
[Result "0-1"]
[ECO "C01"]
[WhiteElo "1781"]
[BlackElo "1476"]
[Annotator "NA"]
[PlyCount "61"]
[EventDate "2019.06.07"]
[EventType "swiss"]
[EventRounds "9"]
[EventCountry "GER"]
[SourceTitle "playchess.com"]
[Source "ChessBase"]
[SourceQuality "1"]
[TimeControl "40/4500+30:900+30"]

1. e4 {[%emt 0:00:00]} e6 {[%emt 0:00:00]} 2. d4 {[%emt 0:00:00]} d5 {[%emt 0:00:00]} 3. exd5 {[%emt 0:00:00]} exd5 {[%emt 0:00:00]} 4. Nf3 {[%emt 0:00:00]} Nf6 {[%emt 0:00:00]} 5. Bd3 {[%emt 0:00:00]} Bd6 {[%emt 0:00:00]} 6. O-O {[%emt 0:00:00]} O-O {[%emt 0:00:00]} 7. h3 {[%emt 0:00:00]} Be6 {[%emt 0:00:00]} 8. Bg5 {[%emt 0:00:00]} Nbd7 {[%emt 0:00:00]} 9. c3 {[%emt 0:00:00]} c6 {[%emt 0:00:00]} 10. Qc2 {[%emt 0:00:00]} h6 {[%emt 0:00:01]} 11. Bh4 {[%emt 0:00:00]} Qc7 {[%emt 0:00:50]} 12. Bxf6 {[%emt 0:00:00]} Nxf6 {[%emt 0:00:14]} 13. Nbd2 {[%emt 0:00:00]} Qd7 {[%emt 0:01:16]} 14. Rae1 {[%emt 0:00:00]} Nh5 {[%emt 0:10:21]} 15. Ne5 {[%emt 0:01:20]} Bxe5 {[%emt 0:00:44]} 16. Rxe5 {[%emt 0:00:54]} Nf4 {[%emt 0:00:42]} 17. Re3 {[%emt 0:17:20]} Rae8 {[%emt 0:14:55]} 18. Rfe1 {[%emt 0:08:44]} f5 {[%emt 0:16:21]} 19. Nf3 {[%emt 0:01:03]} Ng6 {[%emt 0:04:57]} 20. Ne5 {[%emt 0:01:45]} Nxe5 {[%emt 0:00:43]} 21. Rxe5 {[%emt 0:00:03]} f4 {[%emt 0:00:24]} 22. Kh2 {[%emt 0:02:42]} f3 {[%emt 0:02:17]} 23. g3 {[%emt 0:00:06]} Bxh3 {[%emt 0:02:00]} 24. Rxe8 {[%emt 0:25:20]} Rxe8 {[%emt 0:00:20]} 25. Bf5 {[%emt 0:03:16]} Bxf5 {[%emt 0:03:14]} 26. Rxe8+ {[%emt 0:00:02]} Qxe8 {[%emt 0:05:48]} 27. Qxf5 {[%emt 0:00:04]} Qf7 {[%emt 0:00:48]} 28. Qe5 {[%emt 0:02:49]} Qg6 {[%emt 0:03:38]} 29. Qb8+ {[%emt 0:02:17]} Kh7 {[%emt 0:00:13]} 30. Qc8 {[%emt 0:00:11]} Qc2 {[%emt 0:06:11]} 31. Kg1 {[%emt 0:00:07] normal} 0-1

[Event "GER-ch Youth U12 2019"]
[Site "Willingen"]
[Date "2019.06.09"]
[Round "2.14"]
[White "Krueger, Arthur"]
[Black "Bakiev, Diyor"]
[Result "0-1"]
[ECO "B15"]
[WhiteElo "1613"]
[BlackElo "2123"]
[Annotator "NA"]
[PlyCount "68"]
[EventDate "2019.06.07"]
[EventType "swiss"]
[EventRounds "9"]
[EventCountry "GER"]
[SourceTitle "playchess.com"]
[Source "ChessBase"]
[SourceQuality "1"]
[TimeControl "40/4500+30:900+30"]

1. e4 {[%emt 0:00:00]} c6 {[%emt 0:00:00]} 2. d4 {[%emt 0:00:00]} d5 {[%emt 0:00:00]} 3. Nc3 {[%emt 0:00:00]} dxe4 {[%emt 0:00:00]} 4. Nxe4 {[%emt 0:00:00]} Nf6 {[%emt 0:00:00]} 5. Nxf6+ {[%emt 0:00:00]} exf6 {[%emt 0:00:00]} 6. Nf3 {[%emt 0:00:00]} Bd6 {[%emt 0:00:00]} 7. Bc4 {[%emt 0:00:00]} O-O {[%emt 0:00:00]} 8. O-O {[%emt 0:00:00]} Bg4 {[%emt 0:00:00]} 9. h3 {[%emt 0:01:00]} Bh5 {[%emt 0:00:00]} 10. c3 {[%emt 0:01:00]} Re8 {[%emt 0:00:00]} 11. Be3 {[%emt 0:05:00]} Nd7 {[%emt 0:00:00]} 12. Re1 {[%emt 0:06:35]} Nb6 {[%emt 0:00:00]} 13. Bb3 {[%emt 0:02:05]} Nd5 {[%emt 0:00:00]} 14. Bxd5 {[%emt 0:03:22]} cxd5 {[%emt 0:00:18]} 15. g4 {[%emt 0:01:27]} Bg6 {[%emt 0:00:15]} 16. Nh4 {[%emt 0:01:42]} Bc7 {[%emt 0:06:38]} 17. Nxg6 {[%emt 0:05:00]} hxg6 {[%emt 0:02:22]} 18. Qf3 {[%emt 0:10:46]} Qd6 {[%emt 0:01:26]} 19. Bd2 {[%emt 0:03:44]} Re4 {[%emt 0:09:24]} 20. b3 {[%emt 0:10:10]} f5 {[%emt 0:02:44]} 21. Rxe4 {[%emt 0:04:10]} fxe4 {[%emt 0:00:19]} 22. Qg2 {[%emt 0:00:38]} f5 {[%emt 0:04:44]} 23. Re1 {[%emt 0:14:03]} f4 {[%emt 0:02:42]} 24. Qh2 {[%emt 0:03:27]} Qf6 {[%emt 0:08:15]} 25. Rf1 {[%emt 0:02:03]} Rc8 {[%emt 0:02:56]} 26. Qh1 {[%emt 0:06:54]} f3 {[%emt 0:01:43]} 27. h4 {[%emt 0:02:32]} Kf7 {[%emt 0:01:51]} 28. Qh3 {[%emt 0:01:11]} Rh8 {[%emt 0:01:13]} 29. g5 {[%emt 0:01:03]} Qf5 {[%emt 0:00:46]} 30. Qxf5+ {[%emt 0:01:06]} gxf5 {[%emt 0:00:05]} 31. c4 {[%emt 0:00:57]} Rxh4 {[%emt 0:00:38]} 32. cxd5 {[%emt 0:00:29]} Bh2+ {[%emt 0:00:07]} 33. Kh1 {[%emt 0:00:29]} Bf4+ {[%emt 0:00:04]} 34. Kg1 {[%emt 0:00:08]} Bxd2 {[%emt 0:00:08] normal} 0-1

[Event "GER-ch Youth U12 2019"]
[Site "Willingen"]
[Date "2019.06.10"]
[Round "3.1"]
[White "Sosa Costa, Leonardo"]
[Black "Guo, Philipp Ziming"]
[Result "1-0"]
[ECO "B33"]
[WhiteElo "1945"]
[BlackElo "1674"]
[Annotator "NA"]
[PlyCount "73"]
[EventDate "2019.06.07"]
[EventType "swiss"]
[EventRounds "9"]
[EventCountry "GER"]
[SourceTitle "playchess.com"]
[Source "ChessBase"]
[SourceQuality "1"]
[TimeControl "40/4500+30:900+30"]

1. e4 {[%emt 0:00:00]} c5 {[%emt 0:00:00]} 2. Nf3 {[%emt 0:00:00]} Nc6 {[%emt 0:00:00]} 3. d4 {[%emt 0:00:00]} cxd4 {[%emt 0:00:00]} 4. Nxd4 {[%emt 0:00:00]} Nf6 {[%emt 0:00:00]} 5. Nc3 {[%emt 0:00:00]} e5 {[%emt 0:00:00]} 6. Ndb5 {[%emt 0:00:00]} d6 {[%emt 0:00:00]} 7. Bg5 {[%emt 0:00:00]} a6 {[%emt 0:00:00]} 8. Na3 {[%emt 0:00:00]} b5 {[%emt 0:00:00]} 9. Nd5 {[%emt 0:00:00]} Be7 {[%emt 0:00:00]} 10. Bxf6 {[%emt 0:00:00]} Bxf6 {[%emt 0:00:00]} 11. c3 {[%emt 0:00:00]} Bg5 {[%emt 0:00:00]} 12. Nc2 {[%emt 0:00:00]} Be6 13. a4 {[%emt 0:00:00]} bxa4 {[%emt 0:01:08]} 14. Rxa4 {[%emt 0:00:00]} a5 {[%emt 0:06:48]} 15. Bb5 {[%emt 0:10:42]} Bd7 {[%emt 0:11:43]} 16. Nce3 {[%emt 0:13:36]} Bxe3 {[%emt 0:06:19]} 17. Nxe3 {[%emt 0:00:10]} Qb8 {[%emt 0:06:25]} 18. Qd5 {[%emt 0:06:28]} Ne7 {[%emt 0:11:34]} 19. Bxd7+ {[%emt 0:01:13]} Kxd7 {[%emt 0:00:13]} 20. Qa2 {[%emt 0:06:39]} Qb5 {[%emt 0:05:31]} 21. Nc4 {[%emt 0:00:55]} Nc6 {[%emt 0:03:11]} 22. O-O {[%emt 0:02:22]} Ke7 {[%emt 0:02:22]} 23. Rd1 {[%emt 0:03:01]} Rhd8 {[%emt 0:02:35]} 24. Rd5 {[%emt 0:01:10]} Qb7 {[%emt 0:01:17]} 25. h3 {[%emt 0:03:43]} Rab8 {[%emt 0:02:24]} 26. Qa3 {[%emt 0:01:30]} Qb3 {[%emt 0:06:37]} 27. Nxe5 {[%emt 0:17:07]} Nxe5 {[%emt 0:03:07]} 28. Rxe5+ {[%emt 0:00:05]} Kd7 {[%emt 0:01:23]} 29. Rd5 {[%emt 0:03:24]} Qxa3 {[%emt 0:01:45]} 30. bxa3 {[%emt 0:00:07]} Rb3 {[%emt 0:00:38]} 31. c4 {[%emt 0:00:49]} Rc3 {[%emt 0:01:46]} 32. e5 {[%emt 0:03:25]} Ke7 {[%emt 0:03:10]} 33. Raxa5 {[%emt 0:00:45]} Rxc4 {[%emt 0:01:27]} 34. exd6+ {[%emt 0:00:50]} Ke6 {[%emt 0:00:59]} 35. Re5+ {[%emt 0:00:46]} Kf6 {[%emt 0:02:22]} 36. Rf5+ {[%emt 0:02:00]} Kg6 {[%emt 0:00:59]} 37. Rfd5 {[%emt 0:02:34] normal} 1-0

[Event "GER-ch Youth U12 2019"]
[Site "Willingen"]
[Date "2019.06.10"]
[Round "3.2"]
[White "Foerster-Yialamas, Lucas"]
[Black "Mueller, Maximilian"]
[Result "1-0"]
[ECO "C10"]
[WhiteElo "1981"]
[BlackElo "1606"]
[Annotator "NA"]
[PlyCount "127"]
[EventDate "2019.06.07"]
[EventType "swiss"]
[EventRounds "9"]
[EventCountry "GER"]
[SourceTitle "playchess.com"]
[Source "ChessBase"]
[SourceQuality "1"]
[TimeControl "40/4500+30:900+30"]

1. e4 {[%emt 0:00:00]} e6 {[%emt 0:00:00]} 2. d4 {[%emt 0:00:00]} d5 {[%emt 0:00:00]} 3. Nc3 {[%emt 0:00:00]} Nc6 {[%emt 0:00:00]} 4. exd5 {[%emt 0:00:00]} exd5 {[%emt 0:00:00]} 5. Bf4 {[%emt 0:00:00]} a6 {[%emt 0:00:00]} 6. Nf3 {[%emt 0:00:00]} Nge7 {[%emt 0:00:00]} 7. Be2 {[%emt 0:00:00]} Ng6 {[%emt 0:00:00]} 8. Bg3 {[%emt 0:00:00]} Bf5 {[%emt 0:00:00]} 9. a3 {[%emt 0:00:00]} Be7 {[%emt 0:00:00]} 10. O-O {[%emt 0:00:00]} O-O {[%emt 0:00:00]} 11. Re1 {[%emt 0:00:00]} Qd7 {[%emt 0:01:08]} 12. Qd2 {[%emt 0:00:54]} Rfe8 {[%emt 0:02:28]} 13. Bd3 {[%emt 0:06:27]} Bxd3 {[%emt 0:02:06]} 14. Qxd3 {[%emt 0:00:14]} Bf8 {[%emt 0:09:25]} 15. h4 {[%emt 0:04:27]} Rxe1+ {[%emt 0:02:48]} 16. Rxe1 {[%emt 0:00:10]} Bd6 {[%emt 0:04:45]} 17. Ne5 {[%emt 0:03:37]} Bxe5 {[%emt 0:00:08]} 18. dxe5 {[%emt 0:00:40]} Nce7 {[%emt 0:01:19]} 19. h5 {[%emt 0:03:30]} Nf8 {[%emt 0:00:09]} 20. Bh4 {[%emt 0:05:23]} c6 {[%emt 0:00:19]} 21. Bxe7 {[%emt 0:04:30]} Qxe7 {[%emt 0:00:51]} 22. Qf5 {[%emt 0:01:05]} Qe6 {[%emt 0:00:50]} 23. Qf4 {[%emt 0:01:27]} Qe7 {[%emt 0:02:07]} 24. Qg4 {[%emt 0:06:35]} Re8 {[%emt 0:04:09]} 25. f4 {[%emt 0:00:38]} Qd7 {[%emt 0:02:09]} 26. Qxd7 {[%emt 0:06:09]} Nxd7 {[%emt 0:00:07]} 27. g4 {[%emt 0:01:46]} g6 {[%emt 0:04:52]} 28. hxg6 {[%emt 0:00:47]} hxg6 {[%emt 0:00:07]} 29. Kf2 {[%emt 0:01:29]} g5 {[%emt 0:03:01]} 30. Kg3 {[%emt 0:04:26]} Kg7 {[%emt 0:00:47]} 31. Nb1 {[%emt 0:04:29]} gxf4+ {[%emt 0:01:44]} 32. Kxf4 {[%emt 0:00:09]} Kg6 {[%emt 0:00:34]} 33. Nd2 {[%emt 0:03:16]} f6 {[%emt 0:01:18]} 34. Nf3 {[%emt 0:00:07]} fxe5+ {[%emt 0:00:54]} 35. Nxe5+ {[%emt 0:00:09]} Nxe5 {[%emt 0:00:11]} 36. Rxe5 {[%emt 0:00:06]} Rf8+ {[%emt 0:00:05]} 37. Rf5 {[%emt 0:03:18]} Re8 {[%emt 0:00:13]} 38. Rg5+ {[%emt 0:02:57]} Kf6 {[%emt 0:00:20]} 39. Rh5 {[%emt 0:02:14]} Kg6 {[%emt 0:00:07]} 40. Re5 {[%emt 0:00:11]} Rf8+ {[%emt 0:00:08]} 41. Kg3 {[%emt 0:15:25]} Rf7 {[%emt 0:16:02]} 42. Re3 {[%emt 0:01:04]} Rg7 {[%emt 0:00:52]} 43. a4 {[%emt 0:01:19]} Rf7 {[%emt 0:00:17]} 44. a5 {[%emt 0:00:53]} Kg5 {[%emt 0:04:00]} 45. Re5+ {[%emt 0:04:48]} Kg6 {[%emt 0:00:05]} 46. Re8 {[%emt 0:01:08]} Rg7 {[%emt 0:02:12]} 47. Re6+ {[%emt 0:01:53]} Kg5 {[%emt 0:00:15]} 48. Re5+ {[%emt 0:00:20]} Kg6 {[%emt 0:00:04]} 49. Re8 {[%emt 0:00:37]} Rf7 {[%emt 0:00:14]} 50. Rg8+ {[%emt 0:00:31]} Kh7 {[%emt 0:01:13]} 51. Rg5 {[%emt 0:01:13]} Kh6 {[%emt 0:00:05]} 52. Rf5 {[%emt 0:00:53]} Re7 {[%emt 0:00:08]} 53. Kh4 {[%emt 0:02:37]} Kg6 {[%emt 0:00:39]} 54. Rg5+ {[%emt 0:00:31]} Kf6 {[%emt 0:00:18]} 55. Rg8 {[%emt 0:01:06]} Rh7+ {[%emt 0:00:14]} 56. Kg3 {[%emt 0:00:10]} Rf7 {[%emt 0:00:19]} 57. Kf4 {[%emt 0:02:09]} Re7 {[%emt 0:03:00]} 58. g5+ {[%emt 0:00:34]} Kf7 {[%emt 0:00:13]} 59. Rh8 {[%emt 0:00:44]} Kg7 {[%emt 0:00:17]} 60. Rh3 {[%emt 0:00:46]} Kg6 {[%emt 0:01:04]} 61. Rh6+ {[%emt 0:00:35]} Kg7 {[%emt 0:00:10]} 62. Rd6 {[%emt 0:00:30]} Re4+ {[%emt 0:05:23]} 63. Kf5 {[%emt 0:00:10]} Re7 {[%emt 0:00:05]} 64. g6 {[%emt 0:01:02] normal} 1-0